bitfinex/quotes_SOLUSD_20241122
["timestamp","ask_amount","ask_price","bid_price","bid_amount"]
[1732253134102,0.3,262.03,262.02,20.0]
[1732253135225,0.3,262.03,261.99,4.06955643]
[1732253136301,0.3,262.03,261.96,15.5944]
[1732253137817,0.3,262.03,261.97,20.0]
[1732253138018,0.3,262.02,261.97,20.0]
[1732253138323,0.3,262.02,261.98,0.57242603]
[1732253138497,0.3,262.02,261.97,25.33278941]
[1732253138701,0.3,262.02,261.98,5.33278941]
[1732253139202,0.3,262.02,261.99,0.57232647]
[1732253139507,0.3,262.02,261.99,5.90511588]
[1732253141101,0.3,262.01,261.99,5.90511588]
[1732253141805,0.3,262.01,262.0,20.0]
[1732253144123,2.5,262.13,262.0,20.0]
[1732253144429,1.01540513,262.12,262.0,20.0]
[1732253144799,2.5,262.11,262.0,20.0]
[1732253145027,1.01540513,262.12,262.0,20.0]
[1732253145614,3.51540513,262.12,262.0,20.0]
[1732253145814,6.01540513,262.12,262.0,20.0]
[1732253146213,2.5,262.1,262.0,20.0]
[1732253146426,2.5,262.1,261.96,15.5944]
[1732253146626,2.5,262.1,261.97,20.0]
[1732253147106,2.5,262.07,261.97,20.0]
[1732253147419,0.3,262.06,261.94,20.0]
[1732253148331,0.3,262.06,261.95,5.33278941]
[1732253149123,0.3,262.06,261.96,20.0]
[1732253149509,0.3,262.06,261.96,20.57242338]
[1732253150936,2.5,262.03,261.95,5.33278941]
[1732253152022,2.5,262.0,261.95,5.33278941]
[1732253152226,2.5,262.0,261.87,0.57250641]
[1732253152227,0.3,261.99,261.88,5.33278941]
[1732253152428,0.3,261.98,261.89,5.33278941]
[1732253153505,0.3,261.87,261.81,0.57259705]
[1732253153728,0.3,261.86,261.76,15.2022]
[1732253154320,0.3,261.86,261.77,0.57280296]
[1732253154533,0.3,261.86,261.77,5.28448126]
[1732253154905,0.3,261.86,261.77,4.7116783]
[1732253155336,0.3,261.86,261.78,0.5726998]
[1732253155502,0.3,261.86,261.79,28.4885623]
[1732253155710,0.3,261.86,261.81,23.776884]
[1732253156327,0.3,261.86,261.82,0.5726533]
[1732253157924,0.3,261.86,261.83,28.21411785]
[1732253158225,0.3,261.96,261.84,0.57259823]
[1732253158418,0.3,261.95,261.84,0.57259823]
[1732253159331,2.8,261.95,261.84,4.37859823]
[1732253159508,2.8,261.95,261.84,3.806]
[1732253160425,0.3,261.95,261.77,4.37866329]
[1732253160636,0.3,261.94,261.79,3.806]
[1732253160821,0.3,261.94,261.81,3.806]
[1732253161024,0.3,261.94,261.82,0.57263556]
[1732253161535,0.3,261.94,261.83,23.776884]
[1732253161735,0.3,261.93,261.84,20.57259842]
[1732253161927,0.3,261.93,261.86,20.0]
[1732253162113,0.3,261.93,261.87,0.57256934]
[1732253162430,0.3,261.93,261.83,4.43723385]
[1732253162741,0.3,261.93,261.85,23.806]
[1732253163028,0.3,261.93,261.85,20.0]
[1732253163229,0.3,261.93,261.8,20.0]
[1732253163439,0.3,261.93,261.82,20.0]
[1732253163616,0.3,261.93,261.83,3.806]
[1732253164655,0.3,261.93,261.84,0.57268955]
[1732253165014,0.3,261.93,261.83,3.806]
[1732253165325,0.3,261.92,261.82,3.806]
[1732253165521,0.3,261.92,261.82,4.37867639]
[1732253166120,2.8,261.92,261.81,3.806]
[1732253166431,22.509,261.9,261.79,20.0]
[1732253166635,22.509,261.9,261.78,23.84566755]
[1732253167036,0.3,261.89,261.78,3.84566755]
[1732253167235,2.5,261.88,261.78,3.84566755]
[1732253167531,3.51604757,261.87,261.72,0.57283805]
[1732253167737,0.3,261.86,261.72,0.57283805]
[1732253168133,0.3,261.85,261.72,0.57283805]
[1732253168524,0.3,261.85,261.72,4.37883805]
[1732253168730,0.3,261.85,261.72,20.57283805]
[1732253170439,0.3,261.85,261.74,20.0]
[1732253170734,0.3,261.85,261.75,5.00998881]
[1732253171039,0.3,261.85,261.76,23.776884]
[1732253171243,0.3,261.85,261.77,20.57276045]
[1732253171446,0.3,261.85,261.77,25.0099943]
[1732253172123,0.3,261.84,261.78,23.776884]
[1732253172324,0.3,261.83,261.8,23.776884]
[1732253172642,0.3,261.83,261.77,20.0]
[1732253172643,0.3,261.89,261.82,23.776884]
[1732253172819,0.3,261.89,261.84,23.776884]
[1732253173023,22.049,261.96,261.84,23.776884]
[1732253173024,0.3,261.88,261.84,23.776884]
[1732253173545,0.3,261.88,261.85,0.57258962]
[1732253173919,0.3,261.88,261.83,4.43723385]
[1732253174321,0.3,261.88,261.79,23.776884]
[1732253174522,0.3,261.88,261.8,20.57272458]
[1732253174722,0.3,261.88,261.81,23.776884]
[1732253175341,0.3,261.88,261.81,28.21411785]
[1732253175542,0.3,261.88,261.82,25.00989816]
[1732253177240,0.3,261.87,261.82,25.00989816]
[1732253177448,0.3,261.87,261.83,23.776884]
[1732253177627,0.3,261.87,261.85,23.776884]
[1732253177818,0.3,261.87,261.86,0.5725869]
[1732253178024,0.3,261.95,261.87,23.776884]
[1732253178229,0.3,261.94,261.88,0.57252351]
[1732253178518,0.3,261.94,261.88,5.00975736]
[1732253179645,0.3,261.94,261.89,20.0]
[1732253180028,0.3,261.94,261.81,3.84587009]
[1732253180029,0.3,261.94,261.83,23.776884]
[1732253180228,0.3,261.94,261.85,23.776884]
[1732253180554,0.3,261.94,261.87,23.776884]
[1732253180841,0.3,261.94,261.88,0.57254149]
[1732253181143,0.3,261.94,261.88,20.57254149]
[1732253181344,0.3,262.0,261.89,23.776884]
[1732253181520,0.3,262.0,261.9,0.57247293]
[1732253182144,0.3,262.0,261.9,25.00970678]
[1732253186028,0.3,262.0,261.9,24.43723385]
[1732253186337,0.3,261.99,261.91,0.57248106]
[1732253186739,0.3,261.98,261.82,0.57247831]
[1732253187255,0.3,261.98,261.82,5.00971216]
[1732253187550,0.3,261.98,261.83,4.43723385]
[1732253187747,0.3,261.98,261.84,0.57257819]
[1732253187945,0.3,261.98,261.84,5.00981204]
[1732253188631,0.3,261.98,261.86,20.0]
[1732253188832,0.3,261.98,261.87,0.57255551]
[1732253189225,0.3,261.98,261.87,4.37855551]
[1732253189629,0.3,261.97,261.88,28.21411785]
[1732253189837,0.3,261.97,261.9,23.776884]
[1732253190055,0.3,262.0,261.92,23.776884]
[1732253190230,0.3,262.0,261.93,0.57240902]
[1732253190429,0.3,261.99,261.93,0.57240902]
[1732253190644,0.3,261.99,261.93,20.57240902]
[1732253191434,0.3,261.99,261.94,23.776884]
[1732253191756,0.3,261.99,261.95,4.37839344]
[1732253191936,0.3,261.99,261.95,0.57239344]
[1732253192948,0.3,261.99,261.95,20.57239344]
[1732253193359,0.3,261.98,261.96,23.776884]
[1732253193648,0.3,261.98,261.97,0.57237509]
[1732253194766,0.3,262.01,261.98,23.776884]
[1732253194937,21.40069683,262.09,262.0,23.776884]
[1732253195256,23.90069683,262.09,262.0,23.776884]
[1732253195656,23.90069683,262.09,261.98,23.776884]
[1732253195960,26.40069683,262.09,261.96,23.776884]
[1732253196286,2.5,262.07,261.96,23.776884]
[1732253196962,26.40069683,262.09,261.96,23.776884]
[1732253197130,2.5,262.07,261.96,23.776884]
[1732253197334,23.90069683,262.09,261.96,23.776884]
[1732253197753,2.5,262.07,261.96,23.776884]
[1732253198955,23.90069683,262.09,261.97,0.5723798]
[1732253199156,23.90069683,262.09,261.98,23.776884]
[1732253199544,21.40069683,262.09,261.98,23.776884]
[1732253199753,21.40069683,262.09,262.0,23.776884]
[1732253201054,2.5,262.08,261.99,4.43723385]
[1732253201661,21.40069683,262.09,261.99,4.23723385]
[1732253202751,21.40069683,262.09,261.96,23.776884]
[1732253202949,21.40069683,262.09,261.97,20.0]
[1732253203151,21.40069683,262.09,262.0,23.776884]
[1732253203347,21.40069683,262.09,262.02,23.776884]
[1732253203542,2.5,262.16,262.02,23.776884]
[1732253203742,21.7886,262.15,262.02,23.776884]
[1732253204258,21.7886,262.15,262.03,0.57222231]
[1732253204464,21.7886,262.15,262.01,23.776884]
[1732253204963,24.2886,262.15,262.01,23.776884]
[1732253206265,21.7886,262.15,262.03,23.776884]
[1732253206444,21.7886,262.15,262.05,23.776884]
[1732253206652,21.7886,262.15,262.08,20.0]
[1732253207655,21.7886,262.15,262.06,23.776884]
[1732253208959,2.5,262.16,262.05,4.68278941]
[1732253209152,2.5,262.18,262.05,4.68278941]
[1732253209153,2.5,262.14,262.05,4.68278941]
[1732253209462,6.3441,262.13,262.05,4.68278941]
[1732253210373,2.5,262.06,261.98,4.68278941]
[1732253212143,2.5,262.1,261.98,4.68278941]
[1732253212361,2.5,262.08,261.98,4.68278941]
[1732253212568,2.5,262.05,261.98,4.68278941]
[1732253214945,3.21553529,262.08,261.98,4.68278941]
[1732253215149,2.5,262.08,261.98,4.68278941]
[1732253216370,2.5,262.08,261.99,3.806]
[1732253217455,2.5,262.06,261.98,4.68278941]
[1732253217661,2.5,262.06,261.98,8.48878941]
[1732253219375,2.5,262.06,261.98,4.68278941]
[1732253220153,2.5,262.04,261.98,4.68278941]
[1732253220481,2.5,262.02,261.98,4.68278941]
[1732253222583,2.5,262.0,261.98,4.68278941]
[1732253222881,2.5,262.02,261.94,3.84587009]
[1732253223079,2.5,262.02,261.92,4.68278941]
[1732253223080,2.5,261.99,261.92,4.68278941]
[1732253223870,2.5,261.97,261.92,4.68278941]
[1732253224576,2.5,261.94,261.92,4.68278941]
[1732253224753,2.5,261.94,261.82,4.68278941]
[1732253224961,2.5,261.94,261.83,0.57266244]
[1732253225178,2.5,261.96,261.84,4.68278941]
[1732253225360,2.5,261.96,261.85,0.57261644]
[1732253225564,0.71582323,262.0,261.85,0.57261644]
[1732253225565,2.5,261.94,261.87,3.806]
[1732253225762,2.5,261.94,261.88,4.68278941]
[1732253227863,2.5,261.94,261.88,24.68278941]
[1732253228172,17.9445,262.01,261.89,0.57264688]
[1732253228371,17.9445,262.01,261.9,4.68278941]
[1732253228582,17.9445,262.01,261.91,0.57253146]
[1732253228777,9.55976588,262.0,261.91,4.68278941]
[1732253228956,11.3441,262.0,261.91,4.68278941]
[1732253229161,6.3441,262.0,261.91,4.68278941]
[1732253229494,6.3441,262.0,261.91,5.25532546]
[1732253230358,6.3441,262.0,261.92,4.68278941]
[1732253230684,2.5,261.99,261.92,4.68278941]
[1732253230889,2.5,261.95,261.88,20.57256125]
[1732253231377,2.5,261.95,261.88,20.0]
[1732253231682,2.5,261.95,261.86,5.25541912]
[1732253231859,2.5,261.93,261.86,4.68278941]
[1732253233261,2.5,261.97,261.86,5.25545891]
[1732253234183,2.5,261.97,261.87,20.0]
[1732253234370,2.5,261.97,261.87,4.68278941]
[1732253234561,2.5,261.97,261.88,4.68278941]
[1732253234962,3.21583663,261.99,261.88,4.68278941]
[1732253235171,2.5,261.99,261.88,5.25539661]
[1732253235592,2.5,261.99,261.89,20.0]
[1732253235883,2.5,261.99,261.9,0.57257658]
[1732253236072,2.5,261.97,261.91,20.0]
[1732253236284,2.5,261.97,261.9,4.68278941]
[1732253238593,22.4484,261.93,261.84,20.0]
[1732253238889,22.4484,261.93,261.85,4.68278941]
[1732253239385,22.4484,261.93,261.86,20.0]
[1732253240288,22.4484,261.93,261.86,4.68278941]
[1732253240474,22.4484,261.93,261.87,4.68278941]
[1732253240677,22.4484,261.93,261.87,5.25541332]
[1732253241592,22.4484,261.93,261.88,23.776884]
[1732253241793,2.5,262.03,261.88,23.776884]
[1732253241794,22.4484,262.01,261.89,5.25534991]
[1732253241974,22.4484,262.01,261.9,23.776884]
[1732253242171,22.4484,262.01,261.91,25.25525502]
[1732253243873,2.5,262.0,261.91,4.68278941]
[1732253244086,2.5,261.98,261.84,4.37847905]
[1732253244266,2.5,261.94,261.86,20.0]
[1732253244473,2.5,261.94,261.85,3.84587009]
[1732253245178,2.5,261.94,261.83,4.68278941]
[1732253245685,22.4484,261.93,261.83,4.68278941]
[1732253246597,2.5,261.84,261.69,15.4377]
[1732253246805,15.731,261.82,261.73,4.68278941]
[1732253246973,18.231,261.82,261.73,4.68278941]
[1732253249890,18.231,261.82,261.73,9.08627942]
[1732253250090,18.231,261.82,261.74,20.0]
[1732253250875,2.5,261.79,261.74,20.0]
[1732253251280,2.5,261.77,261.68,3.84587009]
[1732253251797,2.5,261.79,261.69,4.68278941]
[1732253252172,5.0,261.81,261.69,24.68278941]
[1732253252572,2.5,261.79,261.69,24.68278941]
[1732253252770,15.731,261.82,261.7,0.57296829]
[1732253253107,15.731,261.82,261.71,24.68278941]
[1732253253399,18.231,261.82,261.72,0.57292242]
[1732253253604,15.731,261.82,261.72,25.25571183]
[1732253253891,15.731,261.82,261.73,28.45967341]
[1732253254094,15.731,261.82,261.74,0.57287827]
[1732253254395,15.731,261.82,261.74,3.806]
[1732253254597,2.5,261.8,261.73,4.68278941]
[1732253254893,2.5,261.76,261.72,20.0]
[1732253255474,2.5,261.76,261.68,3.84587009]
[1732253255994,2.5,261.75,261.68,3.84587009]
[1732253256335,22.3914,261.74,261.67,4.68278941]
[1732253256798,22.3914,261.74,261.63,3.806]
[1732253256799,2.5,261.71,261.63,3.806]
[1732253257584,2.5,261.68,261.61,3.806]
[1732253258182,2.5,261.67,261.61,3.806]
[1732253258700,2.5,261.66,261.61,3.806]
[1732253259297,2.49999992,261.66,261.61,3.806]
[1732253262172,2.49999992,261.66,261.61,23.806]
[1732253263979,2.49999992,261.63,261.61,23.806]
[1732253264208,4.99999992,261.63,261.61,23.806]
[1732253264399,20.91779992,261.63,261.61,23.806]
[1732253266200,20.91779992,261.63,261.44,23.806]
[1732253266377,20.91779992,261.63,261.55,3.806]
[1732253266699,2.49999992,261.61,261.55,23.806]
[1732253266879,2.49999992,261.58,261.55,3.806]
[1732253268305,2.49999992,261.58,261.55,23.806]
[1732253268490,6.665,261.57,261.55,23.806]
[1732253268692,6.665,261.57,261.46,8.48878941]
[1732253268693,2.49999992,261.54,261.46,8.48878941]
[1732253269687,2.49999992,261.52,261.46,8.48878941]
[1732253269881,15.9178,261.51,261.46,8.48878941]
[1732253270282,2.49999992,261.5,261.46,8.48878941]
[1732253270495,4.99999992,261.5,261.46,8.48878941]
[1732253270699,2.49999992,261.5,261.46,8.48878941]
[1732253270882,3.21703363,261.56,261.46,8.48878941]
[1732253271082,22.5828,261.57,261.47,0.57352674]
[1732253271385,25.08279992,261.57,261.49,3.806]
[1732253271589,25.08279992,261.57,261.49,23.806]
[1732253272006,2.49999992,261.56,261.51,23.806]
[1732253273902,2.49999992,261.53,261.51,23.806]
[1732253276190,2.49999992,261.52,261.51,23.806]
[1732253276784,2.49999992,261.52,261.51,3.806]
[1732253276991,2.49999992,261.48,261.45,3.806]
[1732253277191,22.5828,261.57,261.46,0.57364301]
[1732253277192,2.49999992,261.54,261.46,0.57364301]
[1732253277405,2.49999992,261.54,261.47,3.806]
[1732253277606,2.49999992,261.54,261.49,3.806]
[1732253277788,2.49999992,261.54,261.49,8.48878941]
[1732253278689,22.5828,261.57,261.51,3.806]
[1732253278886,22.5828,261.57,261.51,8.48878941]
[1732253280492,22.5828,261.57,261.53,3.806]
[1732253280707,2.49999992,261.56,261.53,3.806]
[1732253281811,22.5828,261.57,261.53,3.806]
[1732253282322,2.49999992,261.56,261.53,3.806]
[1732253282491,2.49999992,261.6,261.53,3.806]
[1732253282692,6.665,261.63,261.52,20.0]
[1732253282693,6.665,261.63,261.54,4.68278941]
[1732253282886,6.665,261.63,261.55,23.806]
[1732253283088,6.665,261.63,261.55,8.48878941]
[1732253283405,2.49999992,261.6,261.57,3.806]
[1732253283790,2.49999992,261.58,261.57,3.806]
[1732253284205,4.99999992,261.58,261.52,3.806]
[1732253284722,2.49999992,261.59,261.52,8.48878941]
[1732253285410,2.49999992,261.59,261.54,3.806]
[1732253290089,2.49999992,261.59,261.56,3.806]
[1732253290601,2.49999992,261.59,261.56,23.806]
[1732253292619,2.49999992,261.57,261.56,23.806]
[1732253298028,2.49999992,261.53,261.48,3.806]
[1732253298206,2.49999992,261.53,261.48,23.806]
[1732253298514,2.49999992,261.51,261.48,3.806]
[1732253300221,2.49999992,261.49,261.48,3.806]
[1732253300601,2.49999992,261.49,261.48,23.806]
[1732253300900,2.49999992,261.49,261.43,23.806]
[1732253305723,2.49999992,261.49,261.45,3.806]
[1732253305898,2.49999992,261.49,261.47,3.806]
[1732253306099,2.49999992,261.49,261.48,7.43963088]
[1732253307120,2.49999992,261.51,261.48,7.43963088]
[1732253307415,2.49999992,261.51,261.5,3.806]
[1732253307609,2.49999992,261.51,261.5,7.43963088]
[1732253309215,2.49999992,261.51,261.5,27.37449276]
[1732253309730,2.49999992,261.51,261.5,27.37431165]
[1732253310707,2.49999992,261.51,261.5,3.56831165]
[1732253312610,2.49999992,261.51,261.43,20.0]
[1732253312810,2.49999992,261.51,261.44,3.48157146]
[1732253313024,4.99999992,261.51,261.45,3.48157146]
[1732253313214,2.49999992,261.51,261.47,3.806]
[1732253313417,4.99999992,261.51,261.48,7.28757146]
[1732253313616,4.99999992,261.51,261.49,3.48157146]
[1732253313821,4.99999992,261.51,261.5,3.48157146]
[1732253314406,2.49999992,261.51,261.5,3.48157146]
[1732253314701,4.99999992,261.51,261.5,7.28757146]
[1732253315118,4.99999992,261.51,261.5,27.28757146]
[1732253316801,4.99999992,261.51,261.5,3.48157146]
[1732253317300,4.99999992,261.51,261.5,3.47908136]
[1732253319727,4.99999992,261.51,261.5,3.47881991]
[1732253320432,4.99999992,261.51,261.5,23.47834732]
[1732253320729,2.49999992,261.51,261.5,23.47834732]
[1732253321234,2.49999992,261.51,261.5,3.47834732]
[1732253322820,2.49999992,261.51,261.42,3.806]
[1732253323013,2.49999992,261.49,261.42,3.806]
[1732253323212,2.49999992,261.49,261.4,0.57362384]
[1732253323213,2.49999992,261.49,261.4,4.37962384]
[1732253323408,2.49999992,261.49,261.42,3.806]
[1732253324431,2.49999992,261.49,261.42,23.806]
[1732253330731,2.49999992,261.69,261.51,3.806]
[1732253330923,2.49999992,261.67,261.55,20.0]
[1732253331124,2.49999992,261.67,261.58,20.0]
[1732253331348,2.49999992,261.67,261.6,20.0]
[1732253332526,2.49999992,261.67,261.61,0.57319843]
[1732253333042,2.49999992,261.67,261.59,4.44090898]
[1732253333043,2.49999992,261.6,261.59,4.44090898]
[1732253333338,2.49999992,261.6,261.53,4.64738404]
[1732253334244,2.49999992,261.6,261.54,3.806]
[1732253334625,2.5,261.63,261.56,3.806]
[1732253334626,2.49999992,261.62,261.56,3.806]
[1732253334931,2.49999992,261.6,261.54,9.82655086]
[1732253335441,2.49999992,261.6,261.55,20.0]
[1732253335733,2.49999992,261.57,261.55,20.0]
[1732253336124,2.49999992,261.57,261.56,3.806]
[1732253337216,2.49999992,261.59,261.56,3.806]
[1732253338242,2.49999992,261.61,261.56,3.806]
[1732253338739,2.49999992,261.58,261.56,3.806]
[1732253339041,2.49999992,261.6,261.56,3.806]
[1732253339442,2.49999992,261.58,261.56,3.806]
[1732253340426,2.49999992,261.61,261.55,20.0]
[1732253340628,2.49999992,261.61,261.56,3.806]
[1732253341244,4.99999992,261.61,261.56,3.806]
[1732253342749,2.49999992,261.61,261.56,3.806]
[1732253342944,2.49999992,261.63,261.56,3.806]
[1732253343243,4.99999992,261.67,261.58,3.806]
[1732253343444,2.49999992,261.65,261.59,34.20576531]
[1732253343952,2.49999992,261.66,261.61,3.806]
[1732253344125,2.49999992,261.66,261.6,23.776884]
[1732253344326,2.49999992,261.66,261.61,0.57316429]
[1732253344833,2.49999992,261.66,261.61,24.37916429]
[1732253345741,2.49999992,261.68,261.61,24.37916429]
[1732253346948,2.5,261.67,261.61,20.0]
[1732253347139,2.5,261.67,261.6,4.64738404]
[1732253347140,2.49999992,261.66,261.6,4.64738404]
[1732253347649,4.99999992,261.66,261.6,24.64738404]
[1732253347839,2.49999992,261.58,261.52,4.33811927]
[1732253348045,2.49999992,261.58,261.5,0.57332282]
[1732253348248,2.49999992,261.56,261.48,3.806]
[1732253348949,2.49999992,261.56,261.49,0.57339692]
[1732253351434,4.99999992,261.56,261.49,0.57339692]
[1732253351646,4.99999992,261.56,261.49,3.806]
[1732253351847,2.49999992,261.56,261.49,3.806]
[1732253352049,4.99999992,261.56,261.49,4.37939716]
[1732253352436,4.99999992,261.58,261.49,4.37939716]
[1732253352731,2.5,261.6,261.51,23.806]
[1732253352931,2.5,261.6,261.52,0.57334869]
[1732253353233,2.5,261.62,261.54,20.0]
[1732253353444,2.5,261.62,261.55,0.57330667]
[1732253354837,6.5031,261.63,261.55,0.57330667]
[1732253355039,2.5,261.62,261.55,0.57330667]
[1732253355762,2.5,261.62,261.48,3.90478594]
[1732253355763,4.99999992,261.58,261.49,0.57330241]
[1732253355937,6.5031,261.63,261.49,24.38330241]
[1732253355938,4.99999992,261.56,261.49,24.38330241]
[1732253356243,2.5,261.54,261.49,4.38330241]
[1732253357032,2.5,261.51,261.43,0.57345248]
[1732253357237,4.99999992,261.49,261.43,0.57345248]
[1732253357438,2.5,261.47,261.43,0.57345248]
[1732253358659,4.99999992,261.49,261.43,0.57345248]
[1732253358960,2.5,261.44,261.38,0.57355809]
[1732253359147,2.5,261.44,261.34,3.90478594]
[1732253359352,2.5,261.44,261.35,4.3836728]
[1732253360253,2.5,261.44,261.36,23.776884]
[1732253360465,2.5,261.44,261.37,20.57368058]
[1732253360760,2.5,261.42,261.37,20.57368058]
[1732253363155,2.5,261.44,261.37,20.57368058]
[1732253363362,2.5,261.41,261.37,0.57368058]
[1732253363845,2.5,261.41,261.36,0.5737153]
[1732253365059,2.5,261.42,261.36,0.5737153]
[1732253365756,2.5,261.41,261.36,0.5737153]
[1732253365961,2.5,261.42,261.36,0.5737153]
[1732253366567,2.49999992,261.47,261.38,3.81]
[1732253366744,2.49999992,261.48,261.41,3.81]
[1732253367065,2.5,261.44,261.42,0.5735914]
[1732253367441,2.5,261.44,261.4,20.57361026]
[1732253368669,2.49999992,261.45,261.4,20.57361026]
[1732253368967,2.5,261.44,261.4,20.57361026]
[1732253371338,2.49999992,261.47,261.4,20.57361026]
[1732253371542,2.5,261.44,261.4,20.57361026]
[1732253372669,2.5,261.48,261.4,20.57361026]
[1732253372856,2.5,261.48,261.42,20.0]
[1732253373065,2.5,261.48,261.42,20.5735809]
[1732253373672,2.5,261.48,261.42,0.5735809]
[1732253373974,2.5,261.5,261.43,7.57282419]
[1732253374153,2.5,261.48,261.44,0.57355916]
[1732253374668,2.5,261.48,261.44,4.33638335]
[1732253374965,2.5,261.47,261.44,4.33638335]
[1732253375170,4.99999992,261.5,261.43,3.76282419]
[1732253375547,2.5,261.48,261.43,3.76282419]
[1732253376066,4.99999992,261.5,261.43,3.76282419]
[1732253376272,4.99999992,261.48,261.43,3.76282419]
[1732253376449,4.99999992,261.48,261.42,4.3364067]
[1732253376776,2.5,261.48,261.43,3.76282419]
[1732253377070,2.5,261.48,261.44,0.57358146]
[1732253377253,2.5,261.48,261.44,4.33640565]
[1732253377461,2.49999992,261.5,261.44,4.33640565]
[1732253377667,4.99999992,261.5,261.44,4.33640565]
[1732253377973,2.5,261.5,261.44,4.33640565]
[1732253378270,2.5,261.54,261.44,4.33723044]
[1732253378477,2.5,261.51,261.45,3.76364898]
[1732253378784,2.5,261.51,261.46,0.57348151]
[1732253379879,2.5,261.51,261.44,3.76445776]
[1732253380168,2.5,261.5,261.45,4.33794134]
[1732253380565,4.99999992,261.55,261.45,4.33794134]
[1732253380777,2.5,261.5,261.45,4.33794134]
[1732253381969,4.99999985,261.55,261.45,4.33794134]
[1732253382158,2.5,261.5,261.45,4.33794134]
[1732253382359,2.5,261.5,261.45,0.57348358]
[1732253382545,2.5,261.5,261.46,0.573503]
[1732253382761,4.99999985,261.55,261.46,0.573503]
[1732253382970,2.5,261.5,261.46,0.573503]
[1732253383452,2.5,261.5,261.47,0.57348561]
[1732253383654,2.5,261.5,261.43,0.57348899]
[1732253384558,2.49999985,261.55,261.43,0.57348899]
[1732253384559,4.99999985,261.55,261.43,0.57348899]
[1732253384768,2.5,261.5,261.43,0.57348899]
[1732253386277,2.49999985,261.51,261.43,0.57348899]
[1732253386464,2.5,261.5,261.43,0.57348899]
[1732253387474,2.49999985,261.51,261.43,0.57348899]
[1732253387679,2.5,261.5,261.43,0.57348899]
[1732253388055,2.5,261.54,261.43,0.57348899]
[1732253388273,2.5,261.54,261.43,9.21714136]
[1732253388674,2.49999985,261.56,261.44,32.51532231]
[1732253388675,2.5,261.56,261.44,32.51532231]
[1732253388886,2.5,261.56,261.45,0.57343296]
[1732253389084,2.5,261.56,261.45,9.31187127]
[1732253389584,2.5,261.56,261.46,4.83365237]
[1732253389762,2.5,261.56,261.47,0.57342952]
[1732253390164,2.5,261.56,261.47,4.38342952]
[1732253390685,2.5,261.54,261.47,4.38342952]
[1732253390869,2.5,261.56,261.47,4.38342952]
[1732253391073,2.5,261.56,261.47,24.38342952]
[1732253391966,2.5,261.56,261.47,9.21708189]
[1732253392375,2.5,261.56,261.49,3.81]
[1732253392567,2.5,261.56,261.49,24.38342783]
[1732253392969,2.5,261.57,261.49,20.57342783]
[1732253393284,2.5,261.57,261.5,4.83365237]
[1732253393480,2.5,261.62,261.51,0.57337097]
[1732253393677,2.5,261.6,261.52,4.83365237]
[1732253393862,2.5,261.6,261.53,0.57332066]
[1732253394374,2.5,261.6,261.53,4.38332066]
[1732253394681,2.5,261.62,261.53,5.40697303]
[1732253395058,2.5,261.62,261.54,3.81]
[1732253395261,2.5,261.6,261.55,0.57325855]
[1732253395470,2.5,261.62,261.55,0.57325855]
[1732253396585,2.5,261.67,261.56,44.949784]
[1732253396782,2.5,261.67,261.58,23.776884]
[1732253397087,2.5,261.67,261.59,29.31158311]
[1732253397668,2.5,261.67,261.6,3.81]
[1732253397866,2.5,261.67,261.61,0.57313601]
[1732253398762,2.5,261.74,261.63,3.81]
[1732253399070,2.5,261.67,261.64,0.57306629]
[1732253399790,2.5,261.67,261.65,23.81]
[1732253400083,2.5,261.67,261.66,0.57304783]